[Event "GrandPrix_30.05"]
[Site "Chess.com"]
[Date "2020.05.30"]
[Round "3"]
[White "Evgeny81"]
[Black "Zubrrr"]
[Result "1/2-1/2"]
[WhiteElo "2423"]
[BlackElo "2571"]
[TimeControl "600+2"]
[EndTime "9:27:22 PDT"]
[Termination "Game drawn by stalemate"]

1. d4 {[%clk 0:10:01.9]} 1... f5 {[%clk 0:09:59]} 2. g3 {[%clk 0:10:02.1]} 2...
Nf6 {[%clk 0:10:00]} 3. Bg2 {[%clk 0:10:02.9]} 3... g6 {[%clk 0:10:01.5]} 4. c4
{[%clk 0:10:03.5]} 4... Bg7 {[%clk 0:10:02.7]} 5. Nh3 {[%clk 0:10:04.4]} 5...
O-O {[%clk 0:10:03.4]} 6. O-O {[%clk 0:10:04.8]} 6... c5 {[%clk 0:08:12.6]} 7.
d5 {[%clk 0:10:02.2]} 7... d6 {[%clk 0:08:07.4]} 8. Nf4 {[%clk 0:09:27]} 8...
Na6 {[%clk 0:08:06.8]} 9. Nc3 {[%clk 0:09:25.7]} 9... Nc7 {[%clk 0:08:07.3]} 10.
Re1 {[%clk 0:08:43.7]} 10... Rb8 {[%clk 0:07:41.7]} 11. a4 {[%clk 0:08:43.3]}
11... a6 {[%clk 0:07:08]} 12. a5 {[%clk 0:08:40.8]} 12... b5 {[%clk 0:06:58.8]}
13. axb6 {[%clk 0:08:41.2]} 13... Rxb6 {[%clk 0:06:59.8]} 14. Ra2 {[%clk
0:08:04.5]} 14... Ng4 {[%clk 0:05:38.9]} 15. Bd2 {[%clk 0:07:09]} 15... Bd7
{[%clk 0:04:54.5]} 16. b3 {[%clk 0:06:36.9]} 16... Qb8 {[%clk 0:04:47.4]} 17.
Ra3 {[%clk 0:06:36.6]} 17... Qe8 {[%clk 0:02:13]} 18. Nd3 {[%clk 0:05:50.6]}
18... Qf7 {[%clk 0:01:53.8]} 19. Na4 {[%clk 0:04:38.9]} 19... Rb7 {[%clk
0:01:29.6]} 20. Naxc5 {[%clk 0:03:45.5]} 20... dxc5 {[%clk 0:01:29.8]} 21. d6
{[%clk 0:03:46.3]} 21... Nb5 {[%clk 0:00:27.1]} 22. cxb5 {[%clk 0:02:52.5]}
22... Rxb5 {[%clk 0:00:29]} 23. Rxa6 {[%clk 0:02:44]} 23... exd6 {[%clk
0:00:18.5]} 24. Rxd6 {[%clk 0:02:29.9]} 24... Be6 {[%clk 0:00:19.3]} 25. Qc1
{[%clk 0:01:29.6]} 25... Rc8 {[%clk 0:00:10.9]} 26. Rc6 {[%clk 0:00:48]} 26...
Rxc6 {[%clk 0:00:04.9]} 27. Bxc6 {[%clk 0:00:49.2]} 27... Rxb3 {[%clk
0:00:06.3]} 28. Nxc5 {[%clk 0:00:45.8]} 28... Rb8 {[%clk 0:00:03.5]} 29. Nxe6
{[%clk 0:00:43.6]} 29... Qxe6 {[%clk 0:00:05.4]} 30. Bg2 {[%clk 0:00:30.6]}
30... Kh8 {[%clk 0:00:06.1]} 31. Bf4 {[%clk 0:00:28]} 31... Rc8 {[%clk
0:00:04.5]} 32. Qd2 {[%clk 0:00:29]} 32... Qb6 {[%clk 0:00:05]} 33. e3 {[%clk
0:00:27.4]} 33... Qf6 {[%clk 0:00:04.6]} 34. h4 {[%clk 0:00:26.7]} 34... h6
{[%clk 0:00:05.1]} 35. Rc1 {[%clk 0:00:10.7]} 35... Rd8 {[%clk 0:00:04.8]} 36.
Qa5 {[%clk 0:00:10.2]} 36... Re8 {[%clk 0:00:02.9]} 37. Qc7 {[%clk 0:00:06.5]}
37... Qb2 {[%clk 0:00:02.7]} 38. Qc2 {[%clk 0:00:06.7]} 38... Qb6 {[%clk
0:00:03.5]} 39. Qc6 {[%clk 0:00:07.4]} 39... Qxc6 {[%clk 0:00:04.8]} 40. Rxc6
{[%clk 0:00:08.4]} 40... Kh7 {[%clk 0:00:06.7]} 41. Bf3 {[%clk 0:00:06.5]} 41...
Ne5 {[%clk 0:00:07.5]} 42. Bxe5 {[%clk 0:00:07.4]} 42... Bxe5 {[%clk 0:00:09.1]}
43. Bd5 {[%clk 0:00:06.4]} 43... Re7 {[%clk 0:00:10.1]} 44. Rb6 {[%clk
0:00:05.7]} 44... h5 {[%clk 0:00:10.7]} 45. Kg2 {[%clk 0:00:05.9]} 45... Kg7
{[%clk 0:00:12]} 46. Kf3 {[%clk 0:00:06.7]} 46... Bc7 {[%clk 0:00:12.2]} 47. Rc6
{[%clk 0:00:07.2]} 47... Be5 {[%clk 0:00:13.3]} 48. Bb3 {[%clk 0:00:06.9]} 48...
Bb8 {[%clk 0:00:12.8]} 49. Rc8 {[%clk 0:00:06.7]} 49... Be5 {[%clk 0:00:13.1]}
50. Rg8+ {[%clk 0:00:07.4]} 50... Kh7 {[%clk 0:00:14.4]} 51. Ra8 {[%clk
0:00:08.5]} 51... Bc7 {[%clk 0:00:13.1]} 52. Ra6 {[%clk 0:00:08.5]} 52... Be5
{[%clk 0:00:12.4]} 53. Bd5 {[%clk 0:00:08.4]} 53... Kg7 {[%clk 0:00:11.2]} 54.
e4 {[%clk 0:00:06.1]} 54... fxe4+ {[%clk 0:00:09.3]} 55. Bxe4 {[%clk 0:00:07.6]}
55... Rf7+ {[%clk 0:00:09.5]} 56. Kg2 {[%clk 0:00:07.1]} 56... Rf6 {[%clk
0:00:10.8]} 57. Ra5 {[%clk 0:00:07.4]} 57... Bd4 {[%clk 0:00:08.9]} 58. Ra2
{[%clk 0:00:08.4]} 58... Kh6 {[%clk 0:00:07.8]} 59. Rd2 {[%clk 0:00:08.6]} 59...
Bb6 {[%clk 0:00:07.9]} 60. Rc2 {[%clk 0:00:09.2]} 60... Kg7 {[%clk 0:00:05.8]}
61. Rb2 {[%clk 0:00:09.6]} 61... Bd4 {[%clk 0:00:06.5]} 62. Ra2 {[%clk
0:00:10.9]} 62... Bb6 {[%clk 0:00:07.4]} 63. Rc2 {[%clk 0:00:11]} 63... Re6
{[%clk 0:00:06.6]} 64. Bd5 {[%clk 0:00:11.7]} 64... Rf6 {[%clk 0:00:07.2]} 65.
f3 {[%clk 0:00:11.8]} 65... Rd6 {[%clk 0:00:08]} 66. Be4 {[%clk 0:00:12.7]}
66... Ba5 {[%clk 0:00:08.4]} 67. Kh3 {[%clk 0:00:11.3]} 67... Bb6 {[%clk
0:00:07.6]} 68. Rb2 {[%clk 0:00:11.6]} 68... Rf6 {[%clk 0:00:07.4]} 69. Rb5
{[%clk 0:00:11.7]} 69... Bd4 {[%clk 0:00:04.5]} 70. Rb7+ {[%clk 0:00:11.3]}
70... Rf7 {[%clk 0:00:05.5]} 71. Rb5 {[%clk 0:00:11]} 71... Rf6 {[%clk
0:00:06.1]} 72. Rd5 {[%clk 0:00:11.3]} 72... Be3 {[%clk 0:00:07.2]} 73. f4
{[%clk 0:00:07.3]} 73... Bb6 {[%clk 0:00:05.6]} 74. f5 {[%clk 0:00:06]} 74...
gxf5 {[%clk 0:00:06]} 75. Bxf5 {[%clk 0:00:07.5]} 75... Kh6 {[%clk 0:00:04.4]}
76. Bd7 {[%clk 0:00:05.7]} 76... Bf2 {[%clk 0:00:04.1]} 77. Be8 {[%clk
0:00:06.3]} 77... Rf3 {[%clk 0:00:04.9]} 78. Rxh5+ {[%clk 0:00:06.8]} 78... Kg7
{[%clk 0:00:06.7]} 79. Rg5+ {[%clk 0:00:07.9]} 79... Kf6 {[%clk 0:00:07.2]} 80.
Rg6+ {[%clk 0:00:06.8]} 80... Ke7 {[%clk 0:00:07.7]} 81. Bc6 {[%clk 0:00:07.3]}
81... Rxg3+ {[%clk 0:00:09]} 82. Rxg3 {[%clk 0:00:07.8]} 82... Bxg3 {[%clk
0:00:10.9]} 83. Kxg3 {[%clk 0:00:09.1]} 83... Kf7 {[%clk 0:00:12.1]} 84. Kg4
{[%clk 0:00:10.4]} 84... Kg7 {[%clk 0:00:12.9]} 85. h5 {[%clk 0:00:11.8]} 85...
Kh8 {[%clk 0:00:14.2]} 86. Kg5 {[%clk 0:00:13.2]} 86... Kg7 {[%clk 0:00:15.5]}
87. h6+ {[%clk 0:00:14.6]} 87... Kh8 {[%clk 0:00:17.4]} 88. Kg6 {[%clk 0:00:16]}
88... Kg8 {[%clk 0:00:18.8]} 89. Bd5+ {[%clk 0:00:17.4]} 89... Kh8 {[%clk
0:00:20.4]} 90. h7 {[%clk 0:00:18.9]} 1/2-1/2

[Event "GrandPrix_30.05"]
[Site "Chess.com"]
[Date "2020.05.30"]
[Round "3"]
[White "Pultis"]
[Black "levvard"]
[Result "1/2-1/2"]
[WhiteElo "2217"]
[BlackElo "2042"]
[TimeControl "600+2"]
[EndTime "9:28:01 PDT"]
[Termination "Game drawn by agreement"]

1. d4 {[%clk 0:10:01.9]} 1... e6 {[%clk 0:10:00.5]} 2. c4 {[%clk 0:10:01.9]}
2... d6 {[%clk 0:10:01.7]} 3. Nf3 {[%clk 0:10:02.6]} 3... Be7 {[%clk 0:10:01.7]}
4. Nc3 {[%clk 0:10:02.8]} 4... Nf6 {[%clk 0:10:01.2]} 5. e4 {[%clk 0:10:03.8]}
5... Bd7 {[%clk 0:09:59.5]} 6. e5 {[%clk 0:10:03.3]} 6... Ng8 {[%clk 0:09:57.6]}
7. Bd3 {[%clk 0:10:01.9]} 7... dxe5 {[%clk 0:09:46.1]} 8. dxe5 {[%clk
0:10:03.8]} 8... Bc6 {[%clk 0:09:45.4]} 9. O-O {[%clk 0:09:55.2]} 9... Nd7
{[%clk 0:09:28.3]} 10. Be4 {[%clk 0:09:55.8]} 10... Bxe4 {[%clk 0:09:26.8]} 11.
Nxe4 {[%clk 0:09:57.7]} 11... Nc5 {[%clk 0:09:24.9]} 12. Nfd2 {[%clk 0:09:30.2]}
12... Nxe4 {[%clk 0:09:22.4]} 13. Nxe4 {[%clk 0:09:30.9]} 13... Qxd1 {[%clk
0:09:12.3]} 14. Rxd1 {[%clk 0:09:32.8]} 14... f5 {[%clk 0:08:58]} 15. exf6
{[%clk 0:09:26]} 15... gxf6 {[%clk 0:08:56.4]} 16. b3 {[%clk 0:09:10.6]} 16...
a5 {[%clk 0:07:52]} 17. a4 {[%clk 0:08:55]} 17... h5 {[%clk 0:07:45.7]} 18. Bb2
{[%clk 0:08:39]} 18... Rh6 {[%clk 0:07:40.6]} 19. f4 {[%clk 0:07:34.7]} 19...
Rg6 {[%clk 0:07:33.7]} 20. f5 {[%clk 0:07:24.7]} 20... exf5 {[%clk 0:07:29.4]}
21. Ng3 {[%clk 0:07:22.4]} 21... f4 {[%clk 0:07:28.5]} 22. Nxh5 {[%clk
0:07:19.5]} 22... Rg4 {[%clk 0:07:22.9]} 23. Rf1 {[%clk 0:07:04.5]} 23... Bc5+
{[%clk 0:07:20.7]} 24. Kh1 {[%clk 0:07:03.9]} 24... O-O-O {[%clk 0:06:56]} 25.
h3 {[%clk 0:06:40.2]} 25... Rg5 {[%clk 0:06:52.4]} 26. Nxf4 {[%clk 0:06:39.7]}
26... Rg3 {[%clk 0:06:47.8]} 27. Ne6 {[%clk 0:05:56.8]} 27... Rd2 {[%clk
0:06:42.1]} 28. Bc1 {[%clk 0:05:38]} 28... Rdxg2 {[%clk 0:06:32.9]} 29. Nxc5
{[%clk 0:05:35.1]} 29... Re2 {[%clk 0:06:28.2]} 30. Bf4 {[%clk 0:05:35]} 30...
Rxh3+ {[%clk 0:06:25.6]} 31. Kg1 {[%clk 0:05:36.2]} 31... b6 {[%clk 0:06:23.7]}
32. Rae1 {[%clk 0:05:28.5]} 32... Rxe1 {[%clk 0:06:20.6]} 33. Rxe1 {[%clk
0:05:27.9]} 33... bxc5 {[%clk 0:06:20.3]} 34. Re8+ {[%clk 0:05:29]} 34... Kb7
{[%clk 0:06:19.2]} 35. Rxg8 {[%clk 0:05:30.9]} 35... Rxb3 {[%clk 0:06:05.4]} 36.
Rg2 {[%clk 0:04:44.5]} 36... Ra3 {[%clk 0:05:56.4]} 37. Rc2 {[%clk 0:04:44.2]}
37... Rxa4 {[%clk 0:05:56.1]} 38. Kf2 {[%clk 0:04:45.5]} 38... Kc6 {[%clk
0:05:55.2]} 39. Kf3 {[%clk 0:04:36.6]} 39... Ra3+ {[%clk 0:05:54.6]} 40. Ke4
{[%clk 0:04:33.7]} 40... a4 {[%clk 0:05:54.4]} 41. Bd2 {[%clk 0:04:14.2]} 41...
Rg3 {[%clk 0:05:49.8]} 42. Be3 {[%clk 0:04:05.8]} 42... Rh3 {[%clk 0:05:47.9]}
43. Ra2 {[%clk 0:04:01.8]} 43... f5+ {[%clk 0:05:46.1]} 44. Kf4 {[%clk
0:03:45.9]} 44... Rh4+ {[%clk 0:05:45.8]} 45. Kxf5 {[%clk 0:03:47.2]} 45... Rxc4
{[%clk 0:05:45.6]} 46. Ke5 {[%clk 0:03:40.5]} 46... Rc3 {[%clk 0:05:12.2]} 47.
Ke4 {[%clk 0:03:10.4]} 47... a3 {[%clk 0:05:04.1]} 48. Bd2 {[%clk 0:03:10.7]}
48... Rh3 {[%clk 0:05:02.1]} 49. Be3 {[%clk 0:03:09.2]} 49... c4 {[%clk
0:05:00.6]} 50. Rxa3 {[%clk 0:03:02.9]} 50... Kb5 {[%clk 0:04:52.3]} 51. Ra1
{[%clk 0:02:46.5]} 51... Rh4+ {[%clk 0:04:50.6]} 52. Kd5 {[%clk 0:02:34.2]}
52... c6+ {[%clk 0:04:48.5]} 53. Ke5 {[%clk 0:02:35.4]} 53... Rh5+ {[%clk
0:04:47.3]} 54. Kd4 {[%clk 0:02:33.3]} 54... Rd5+ {[%clk 0:04:43.7]} 55. Ke4
{[%clk 0:02:34.5]} 55... c3 {[%clk 0:04:43.3]} 56. Bd4 {[%clk 0:02:03.9]} 56...
Kc4 {[%clk 0:04:37.5]} 57. Ra4+ {[%clk 0:02:04.5]} 57... Kb3 {[%clk 0:04:36.4]}
58. Ra6 {[%clk 0:02:04.7]} 58... Rd6 {[%clk 0:04:14.8]} 59. Rb6+ {[%clk
0:01:23.3]} 59... Kc4 {[%clk 0:04:12.1]} 60. Be5 {[%clk 0:01:20.5]} 60... Rh6
{[%clk 0:04:10.2]} 61. Bf4 {[%clk 0:01:14.7]} 61... Re6+ {[%clk 0:04:07.9]} 62.
Kf5 {[%clk 0:01:16.1]} 62... Kc5 {[%clk 0:03:36.1]} 63. Rb3 {[%clk 0:01:15.5]}
63... Kc4 {[%clk 0:03:32.7]} 64. Rb6 {[%clk 0:01:16.5]} 64... Kc5 {[%clk
0:03:31.8]} 65. Rb1 {[%clk 0:01:17.6]} 65... Re2 {[%clk 0:03:29]} 66. Kg4 {[%clk
0:01:16.5]} 66... Re6 {[%clk 0:03:22.7]} 67. Kf5 {[%clk 0:01:06.5]} 67... c2
{[%clk 0:03:16.3]} 68. Rh1 {[%clk 0:00:54.6]} 68... Re8 {[%clk 0:03:13.8]} 69.
Be5 {[%clk 0:00:18.3]} 69... Kd5 {[%clk 0:03:12.3]} 70. Bf4 {[%clk 0:00:05.6]}
70... Re4 {[%clk 0:03:07.9]} 71. Kg4 {[%clk 0:00:03.3]} 71... Kd4 {[%clk
0:03:00.5]} 72. Kf3 {[%clk 0:00:03.9]} 72... Kd3 {[%clk 0:02:58.6]} 73. Bc1
{[%clk 0:00:03.4]} 73... c5 {[%clk 0:02:57.4]} 74. Kf2 {[%clk 0:00:03.6]} 74...
c4 {[%clk 0:02:57.3]} 75. Rh3+ {[%clk 0:00:04.4]} 75... Kd4 {[%clk 0:02:56.3]}
76. Bb2+ {[%clk 0:00:05.8]} 76... Kc5 {[%clk 0:02:55.2]} 77. Rc3 {[%clk
0:00:07.7]} 77... Kb4 {[%clk 0:02:29.1]} 78. Rh3 {[%clk 0:00:03.8]} 78... Rd4
{[%clk 0:02:16.2]} 79. Ke2 {[%clk 0:00:02.4]} 79... Rd5 {[%clk 0:02:07.6]} 80.
Ba3+ {[%clk 0:00:03.4]} 80... Ka4 {[%clk 0:02:01.1]} 81. Bc1 {[%clk 0:00:05.3]}
81... Rd1 {[%clk 0:01:51.9]} 82. Rc3 {[%clk 0:00:03.1]} 82... Rxc1 {[%clk
0:01:42.4]} 83. Kd2 {[%clk 0:00:04.3]} 83... Rb1 {[%clk 0:01:40.5]} 84. Kxc2
{[%clk 0:00:03.1]} 84... Rb4 {[%clk 0:01:16.1]} 85. Rh3 {[%clk 0:00:04.2]} 85...
Rb5 {[%clk 0:01:10.3]} 86. Rh4 {[%clk 0:00:03.2]} 86... Kb4 {[%clk 0:01:09.7]}
87. Rh1 {[%clk 0:00:04.7]} 87... Rf5 {[%clk 0:01:07]} 88. Rh2 {[%clk 0:00:05.6]}
88... Rf3 {[%clk 0:01:05.6]} 89. Rg2 {[%clk 0:00:04.7]} 89... Kc5 {[%clk
0:01:04.6]} 90. Rg5+ {[%clk 0:00:04.7]} 90... Kd4 {[%clk 0:01:03.9]} 91. Rg4+
{[%clk 0:00:05.5]} 91... Kc5 {[%clk 0:01:02.5]} 92. Rg5+ {[%clk 0:00:06.9]}
92... Kb4 {[%clk 0:01:03.8]} 93. Rg2 {[%clk 0:00:08.5]} 93... Ra3 {[%clk
0:01:02.2]} 94. Kb2 {[%clk 0:00:09.8]} 94... c3+ {[%clk 0:01:01.9]} 95. Kb1
{[%clk 0:00:10.9]} 95... Ra5 {[%clk 0:00:59.1]} 96. Rg8 {[%clk 0:00:10]} 96...
Kc4 {[%clk 0:00:57.7]} 97. Rc8+ {[%clk 0:00:08.1]} 97... Kb3 {[%clk 0:00:51.3]}
98. Rb8+ {[%clk 0:00:08.9]} 98... Kc4 {[%clk 0:00:46.3]} 99. Rc8+ {[%clk
0:00:09.8]} 99... Kb4 {[%clk 0:00:46.9]} 100. Rb8+ {[%clk 0:00:09.7]} 1/2-1/2

[Event "GrandPrix_30.05"]
[Site "Chess.com"]
[Date "2020.05.30"]
[Round "3"]
[White "troisi"]
[Black "cukus"]
[Result "1/2-1/2"]
[WhiteElo "1610"]
[BlackElo "2185"]
[TimeControl "600+2"]
[EndTime "9:28:24 PDT"]
[Termination "Game drawn by repetition"]

1. e4 {[%clk 0:10:01.9]} 1... c6 {[%clk 0:09:41.7]} 2. d4 {[%clk 0:10:01.6]}
2... d5 {[%clk 0:09:40.4]} 3. Nc3 {[%clk 0:10:03.2]} 3... dxe4 {[%clk
0:09:41.4]} 4. Nxe4 {[%clk 0:10:05.1]} 4... Nf6 {[%clk 0:09:42.8]} 5. Nxf6+
{[%clk 0:10:03.8]} 5... exf6 {[%clk 0:09:44.7]} 6. h3 {[%clk 0:09:53]} 6... Bd6
{[%clk 0:09:43.6]} 7. Nf3 {[%clk 0:09:53.4]} 7... O-O {[%clk 0:09:44.4]} 8. Be2
{[%clk 0:09:54.4]} 8... Re8 {[%clk 0:09:22.5]} 9. O-O {[%clk 0:09:52.6]} 9...
Nd7 {[%clk 0:08:55.1]} 10. Re1 {[%clk 0:09:39]} 10... Nf8 {[%clk 0:08:54.1]} 11.
Bf1 {[%clk 0:09:36.9]} 11... Bf5 {[%clk 0:08:40.3]} 12. Bd3 {[%clk 0:08:59.5]}
12... Qd7 {[%clk 0:08:13.4]} 13. Be3 {[%clk 0:08:51.1]} 13... Ng6 {[%clk
0:07:57.9]} 14. Bxf5 {[%clk 0:08:40.7]} 14... Qxf5 {[%clk 0:07:57.8]} 15. Qd2
{[%clk 0:08:41.2]} 15... Qd5 {[%clk 0:07:21.4]} 16. Qd3 {[%clk 0:08:11.2]} 16...
b5 {[%clk 0:07:17.6]} 17. a4 {[%clk 0:08:07.1]} 17... f5 {[%clk 0:06:43.8]} 18.
axb5 {[%clk 0:07:42.7]} 18... cxb5 {[%clk 0:06:44.4]} 19. Ra5 {[%clk 0:07:19]}
19... a6 {[%clk 0:06:34.1]} 20. Rea1 {[%clk 0:07:15]} 20... f4 {[%clk
0:06:11.7]} 21. Bd2 {[%clk 0:07:06.8]} 21... Qb7 {[%clk 0:05:50.4]} 22. b3
{[%clk 0:07:01.5]} 22... Ne7 {[%clk 0:04:27.8]} 23. R5a2 {[%clk 0:06:46.9]}
23... Nd5 {[%clk 0:04:03.4]} 24. c4 {[%clk 0:06:18]} 24... bxc4 {[%clk 0:04:04]}
25. bxc4 {[%clk 0:06:19.9]} 25... Nf6 {[%clk 0:03:58.2]} 26. c5 {[%clk
0:06:16.3]} 26... Bc7 {[%clk 0:03:52.9]} 27. Rxa6 {[%clk 0:06:01.7]} 27... Rxa6
{[%clk 0:03:30.4]} 28. Qxa6 {[%clk 0:05:57]} 28... Qd5 {[%clk 0:03:31.2]} 29.
Qa2 {[%clk 0:05:44.8]} 29... Qf5 {[%clk 0:03:25.1]} 30. Qc4 {[%clk 0:05:33.3]}
30... g5 {[%clk 0:03:15.6]} 31. Ra7 {[%clk 0:05:11.7]} 31... Nd5 {[%clk
0:03:14.4]} 32. Qb5 {[%clk 0:03:15.9]} 32... Rb8 {[%clk 0:03:07.5]} 33. Rb7
{[%clk 0:02:59.4]} 33... Ra8 {[%clk 0:02:49.3]} 34. Qb1 {[%clk 0:02:58.9]} 34...
Qxb1+ {[%clk 0:02:32.5]} 35. Rxb1 {[%clk 0:02:59.1]} 35... h6 {[%clk 0:02:33.9]}
36. Kf1 {[%clk 0:02:28.5]} 36... Ra2 {[%clk 0:02:18.6]} 37. Rd1 {[%clk
0:02:02.5]} 37... Kg7 {[%clk 0:02:13.4]} 38. Ne1 {[%clk 0:02:00.9]} 38... Kg6
{[%clk 0:02:04.4]} 39. Nd3 {[%clk 0:01:37]} 39... Kf5 {[%clk 0:02:01.8]} 40. Nb4
{[%clk 0:01:34.8]} 40... Rxd2 {[%clk 0:01:34.1]} 41. Rxd2 {[%clk 0:01:34.2]}
41... Nxb4 {[%clk 0:01:35.4]} 42. d5 {[%clk 0:01:34.9]} 42... Ke5 {[%clk
0:01:30.5]} 43. d6 {[%clk 0:01:33.9]} 43... Bd8 {[%clk 0:01:30.6]} 44. Ke2
{[%clk 0:01:20]} 44... f5 {[%clk 0:01:28.5]} 45. d7 {[%clk 0:00:46.9]} 45... h5
{[%clk 0:01:26.9]} 46. Rd6 {[%clk 0:00:43.4]} 46... g4 {[%clk 0:01:23.5]} 47.
Rh6 {[%clk 0:00:41.5]} 47... f3+ {[%clk 0:01:19.4]} 48. gxf3 {[%clk 0:00:42]}
48... gxh3 {[%clk 0:01:19.8]} 49. Rxh5 {[%clk 0:00:41.7]} 49... Na6 {[%clk
0:01:03.3]} 50. c6 {[%clk 0:00:38.5]} 50... Nb4 {[%clk 0:00:57]} 51. Rh6 {[%clk
0:00:25.1]} 51... h2 {[%clk 0:00:57.6]} 52. c7 {[%clk 0:00:20.8]} 52... Bxc7
{[%clk 0:00:54.6]} 53. Rxh2 {[%clk 0:00:22.3]} 53... Kd6 {[%clk 0:00:46.6]} 54.
Rh4 {[%clk 0:00:20.8]} 54... Nc6 {[%clk 0:00:37.3]} 55. Rh7 {[%clk 0:00:12.4]}
55... Ne5 {[%clk 0:00:32.8]} 56. Rh5 {[%clk 0:00:06]} 56... f4 {[%clk
0:00:27.1]} 57. Rf5 {[%clk 0:00:05.4]} 57... Nxd7 {[%clk 0:00:27.6]} 58. Rxf4
{[%clk 0:00:06.5]} 58... Ke6 {[%clk 0:00:25.7]} 59. Re4+ {[%clk 0:00:07.4]}
59... Kf5 {[%clk 0:00:24.2]} 60. Ra4 {[%clk 0:00:09.3]} 60... Ne5 {[%clk
0:00:23.5]} 61. Ra7 {[%clk 0:00:10.4]} 61... Bb6 {[%clk 0:00:24.1]} 62. Ra6
{[%clk 0:00:11]} 62... Bc5 {[%clk 0:00:22.6]} 63. Ra5 {[%clk 0:00:11.8]} 63...
Bb6 {[%clk 0:00:23.8]} 64. Ra4 {[%clk 0:00:12.6]} 64... Bc5 {[%clk 0:00:23]} 65.
f4 {[%clk 0:00:12.6]} 65... Nd7 {[%clk 0:00:20.7]} 66. Kf3 {[%clk 0:00:11.1]}
66... Bd6 {[%clk 0:00:20.6]} 67. Rd4 {[%clk 0:00:11.5]} 67... Ke6 {[%clk
0:00:20.9]} 68. Re4+ {[%clk 0:00:11.2]} 68... Kf5 {[%clk 0:00:21.3]} 69. Rd4
{[%clk 0:00:11.8]} 69... Ke6 {[%clk 0:00:21.9]} 70. Rd1 {[%clk 0:00:12.6]} 70...
Nf6 {[%clk 0:00:22.6]} 71. Re1+ {[%clk 0:00:12.7]} 71... Kf5 {[%clk 0:00:23.2]}
72. Rb1 {[%clk 0:00:14.6]} 72... Bc7 {[%clk 0:00:23.1]} 73. Rb5+ {[%clk
0:00:15.7]} 73... Kg6 {[%clk 0:00:23.2]} 74. f5+ {[%clk 0:00:16.3]} 74... Kg5
{[%clk 0:00:23.1]} 75. Ke3 {[%clk 0:00:16.3]} 75... Bd6 {[%clk 0:00:21.1]} 76.
Kd4 {[%clk 0:00:17.3]} 76... Bh2 {[%clk 0:00:18.9]} 77. Ra5 {[%clk 0:00:15.5]}
77... Bg1 {[%clk 0:00:19.2]} 78. Ke5 {[%clk 0:00:11.9]} 78... Bxf2 {[%clk
0:00:17.1]} 79. Ke6 {[%clk 0:00:13.3]} 79... Bd4 {[%clk 0:00:14.6]} 80. Ra4
{[%clk 0:00:13.1]} 80... Bc3 {[%clk 0:00:14.8]} 81. Ra3 {[%clk 0:00:13.8]} 81...
Bb2 {[%clk 0:00:11.4]} 82. Ra2 {[%clk 0:00:14.5]} 82... Bc3 {[%clk 0:00:12.2]}
83. Rc2 {[%clk 0:00:15.3]} 83... Bd4 {[%clk 0:00:13.4]} 84. Rd2 {[%clk
0:00:15.5]} 84... Bc3 {[%clk 0:00:14.6]} 85. Rg2+ {[%clk 0:00:16.3]} 85... Kf4
{[%clk 0:00:12.4]} 86. Rc2 {[%clk 0:00:18.2]} 86... Ba1 {[%clk 0:00:12.6]} 87.
Rf2+ {[%clk 0:00:17.8]} 87... Kg5 {[%clk 0:00:11.9]} 88. Rg2+ {[%clk 0:00:18.7]}
88... Kf4 {[%clk 0:00:13.2]} 89. Rg1 {[%clk 0:00:20.6]} 89... Bb2 {[%clk
0:00:13.8]} 90. Rg2 {[%clk 0:00:21.7]} 90... Ba1 {[%clk 0:00:14.6]} 91. Rg6
{[%clk 0:00:22.8]} 91... Ne4 {[%clk 0:00:13.6]} 92. Rg8 {[%clk 0:00:16.7]} 92...
Bb2 {[%clk 0:00:13.6]} 93. Rb8 {[%clk 0:00:15.2]} 93... Bc3 {[%clk 0:00:13.8]}
94. Rb1 {[%clk 0:00:13.6]} 94... Bd4 {[%clk 0:00:11.8]} 95. Rf1+ {[%clk
0:00:14.3]} 95... Kg5 {[%clk 0:00:12.3]} 96. Rd1 {[%clk 0:00:13.9]} 96... Bc3
{[%clk 0:00:12.6]} 97. Kd5 {[%clk 0:00:12.5]} 97... Nf6+ {[%clk 0:00:09.9]} 98.
Ke6 {[%clk 0:00:08]} 98... Bb2 {[%clk 0:00:09.5]} 99. Rg1+ {[%clk 0:00:08.5]}
99... Kf4 {[%clk 0:00:09.3]} 100. Rg2 {[%clk 0:00:10.4]} 100... Ba1 {[%clk
0:00:09.8]} 1/2-1/2